[Event "Leca Open 2022"]
[Site "Leca da Palmeira"]
[Date "2022.08.03"]
[Round "7.11"]
[White "Akhvlediani, Irakli"]
[Black "Cordeiro, Joao Carlos Santos F"]
[Result "1-0"]
[ECO "D02"]
[WhiteElo "2429"]
[BlackElo "2048"]
[Annotator "TA"]
[PlyCount "117"]
[EventDate "2022.08.02"]
[EventType "swiss"]
[EventCountry "POR"]
[SourceTitle "playchess.com"]
[Source "ChessBase"]
[SourceQuality "1"]
[TimeControl "5400+30"]

{[%evp 15,117,0,0,0,4,0,6,0,0,0,0,0,31,31,37,35,35,17,20,20,7,20,14,4,15,15,84,88,85,81,110,27,17,23,33,19,32,32,41,18,33,9,40,40,40,40,47,47,47,40,40,0,0,0,154,130,151,151,310,312,277,261,387,384,429,410,555,530,633,610,564,506,497,491,462,443,862,372,536,559,568,584,482,283,283,283,1874,2142,2332,1427,6716,6137,5338,4918,6497,6531,6665,5531,10256,7695,29980,29981,29977,29971]} 1. d4 Nf6 2. Nf3 d5 3. Bf4 e6 4. e3 c5 5. c3 Bd6 6. Bg3 O-O 7. Nbd2 Nc6 {[%cal Bb8c6,Bc6e7,Be7f5][%mdl 32]} 8. Bd3 b6 9. Qe2 {seems to push 9.Ne5 aside. D02: 1 d4 d5 2 Nf3 sidelines, including 2...Nf6 3 g3 and 2...Nf6 3 Bf4.} Bb7 10. Rd1 Ne7 11. e4 {Black must now prevent e5. The position is equal.} c4 12. Bb1 dxe4 13. Ng5 {[%cal Rg5e4] [#]} Nf5 $146 {[%cal Oe4e3]} ({Predecessor:} 13... b5 14. Ndxe4 Nxe4 15. Nxe4 Bxe4 16. Qxe4 g6 17. Bh4 Qc7 18. Bg5 Nd5 19. h4 Rfe8 {½-½ (45) Kosic,D (2463)-Nestorovic,D (2341) Paracin 2018}) 14. Ngxe4 Nxe4 15. Nxe4 Bxe4 16. Qxe4 g6 17. Bf4 Bxf4 18. Qxf4 Qd6 19. Qf3 Rfe8 20. h4 {[%cal Bh2h4,Bh4h5][%mdl 32]} h5 (20... Rad8 $11) 21. g4 $1 $16 hxg4 22. Qxg4 Kg7 {[#]} 23. Be4 (23. h5 $1 $16 {[%cal Rh5g6]}) 23... Rad8 $11 24. h5 {And now hxg6 would win.} Rh8 {[%cal Be8h8,Bh8h6,Bh6g6][%mdl 32]} 25. Rg1 Rh6 26. Qf3 Rdh8 {[%cal Bd8h8,Bh8h4,Bh4f4][%mdl 32]} 27. hxg6 Rxg6 28. Ke2 Rh4 (28... Qh2 $5 {[%cal Rg6g1]} 29. Rxg6+ fxg6 $14) 29. Bxf5 exf5 30. Qxf5 Rf4 31. Rxg6+ fxg6 $14 {[%mdl 4096] Endgame KQR-KQR} 32. Qg5 Qe6+ $1 33. Kf1 Qh3+ 34. Qg2 Qxg2+ (34... Qh5 $11 35. Ke1 Rf3) 35. Kxg2 $11 {KR-KR} Kf7 36. Re1 Rf5 $2 {[#] Black cannot hold the game after this.} (36... Kf6 $16 37. Kg3 Rf5) 37. Re5 $1 $18 {aiming for Rxf5+.} Rf6 38. Kg3 Rd6 (38... Kf8 $142 39. f4 Kf7) 39. Kf4 Kf6 40. Ke4 Rd8 41. d5 Rh8 42. Re6+ Kf7 43. Kd4 Rh2 44. Re2 {Strongly threatening d6.} Rh4+ 45. Re4 Rh2 (45... g5 $142 46. Ke3 Rh3+ 47. f3 b5) 46. Rf4+ (46. d6 $142) 46... Ke8 (46... Ke7 {might work better.} 47. Kxc4 g5) 47. Kxc4 g5 48. Rf5 g4 49. d6 (49. Kb5 $142) 49... g3 50. fxg3 Rxb2 $2 (50... Kd7 51. Kb3 Kxd6) 51. Kd5 {Kc6 is the strong threat.} Rc2 52. Rf3 Kd7 53. Rf7+ Ke8 54. Rc7 Kd8 55. a4 Rd2+ 56. Kc6 Rd3 57. c4 {[%cal Bc3c4,Bc4c5][%mdl 32]} Rd4 58. c5 Rc4 59. Kb5 {Weighted Error Value: White=0.22 (precise) /Black=0.37} 1-0

[Event "Leca Open 2022"]
[Site "Leca da Palmeira"]
[Date "2022.08.03"]
[Round "7.12"]
[White "Ladron De Guevara Galar, Francisco Javier"]
[Black "Umetsubo, Cesar Hidemitsu"]
[Result "1/2-1/2"]
[ECO "E41"]
[WhiteElo "2033"]
[BlackElo "2405"]
[Annotator "TA"]
[PlyCount "100"]
[EventDate "2022.08.02"]
[EventType "swiss"]
[EventCountry "POR"]
[SourceTitle "playchess.com"]
[Source "ChessBase"]
[SourceQuality "1"]
[TimeControl "5400+30"]

{[%evp 18,100,35,21,33,20,22,34,55,58,49,46,58,50,60,-49,-72,-56,62,54,57,68,59,36,14,12,64,0,0,-22,-12,-21,-2,-46,0,-35,0,0,0,0,0,0,0,0,0,0,0,0,0,0,0,0,0,0,0,0,0,0,0,0,0,0,0,0,0,-12,-12,-12,-17,-94,-94,-194,0,0,0,-248,0,0,12834,-71,-68,-239,-101,-235,-197]} 1. d4 {[%emt 0:00:02]} Nf6 {[%emt 0:00:06]} 2. c4 {[%emt 0:00:09]} e6 {[%emt 0:00:04]} 3. Nc3 {[%emt 0:00:11]} Bb4 {[%emt 0:00:07]} 4. e3 {[%emt 0:00:16]} c5 {[%emt 0:00:05]} 5. Bd3 {[%emt 0:00:37]} Nc6 {[%emt 0:00:08]} 6. Nf3 {[%emt 0:00:54][%cal Bg1f3,Bf3d2,Bd2f1,Bf1e3][%mdl 32]} Bxc3+ {[%emt 0:00:13]} 7. bxc3 {[%emt 0:00:09]} d6 {[%emt 0:00:06]} 8. e4 {[%emt 0:04:00]} e5 {[%emt 0:00:14]} 9. d5 {[%emt 0:03:58]} Ne7 {[%emt 0:00:09]} 10. h3 {[%emt 0:01:24]} h6 {[%emt 0:04:00] E41: Nimzo-Indian: Rubinstein: 4...c5 5 Bd3, including Hübner Variation.} 11. Nd2 {[%emt 0:03:52]} O-O {[%emt 0:03:28]} 12. Nf1 {[%emt 0:01:17]} Ng6 {[%emt 0:21:13] White is slightly better.} 13. g3 {[%emt 0:01:37]} Bd7 {[%emt 0:00:40]} 14. Ne3 {[%emt 0:01:49] [#]} Qc8 $146 {[%emt 0:00:57]} ({Predecessor:} 14... Ne7 15. h4 Nh7 16. Qf3 g6 17. Ng4 h5 18. Nf6+ Nxf6 19. Qxf6 Nc8 20. Bg5 Qxf6 21. Bxf6 {1-0 (61) Kortschnoj,V (2676)-Sammalvuo,T (2393) Batumi 1999}) 15. h4 {[%emt 0:01:18]} Ne7 {[%emt 0:12:42]} 16. f4 {[%emt 0:04:54]} (16. Qe2 $14) 16... exf4 $1 $15 {[%emt 0:02:39]} 17. gxf4 {[%emt 0:00:25]} Bg4 {[%emt 0:05:36]} (17... Ng6 $1 $15 18. Qf3 h5) 18. Nxg4 $14 {[%emt 0:01:33]} Qxg4 {[%emt 0:00:32]} 19. Qxg4 {[%emt 0:01:41]} Nxg4 {[%emt 0:00:02]} 20. Be2 {[%emt 0:01:30]} Nf6 {[%emt 0:01:36]} 21. Bf3 {[%emt 0:00:34]} Nd7 {[%emt 0:00:14]} ({Better is} 21... Rfe8 $11) 22. Ke2 {[%emt 0:02:46]} (22. Rb1 $14) 22... f5 $11 {[%emt 0:00:12]} 23. Kd3 {[%emt 0:00:46]} fxe4+ {[%emt 0:03:47]} 24. Bxe4 {[%emt 0:00:09]} Nf6 {[%emt 0:00:05]} 25. Bf3 {[%emt 0:01:28]} (25. Rb1 $5 {[%cal Rb1b7]}) 25... Nf5 {[%emt 0:01:21]} (25... h5 $15) 26. h5 {[%emt 0:01:24]} (26. Rb1 $5 {[%cal Rb1b7]}) 26... Rae8 {[%emt 0:00:58]} 27. Bd2 {[%emt 0:01:47][%cal Bc1d2,Bd2e1,Be1f2][%mdl 32]} Kf7 {[%emt 0:06:41]} 28. Rae1 {[%emt 0:08:37]} b6 {[%emt 0:01:10]} 29. a4 {[%emt 0:04:46]} Rxe1 {[%emt 0:04:06]} 30. Bxe1 {[%emt 0:00:14]} g6 {[%emt 0:00:23]} 31. Bf2 {[%emt 0:03:20]} Nxh5 {[%emt 0:05:09]} 32. Bxh5 {[%emt 0:00:24]} gxh5 {[%emt 0:00:02]} 33. Rxh5 {[%emt 0:00:26][%mdl 4096] Endgame KRB-KRN} Kf6 {[%emt 0:00:40]} 34. Ke4 {[%emt 0:01:12]} Re8+ {[%emt 0:01:39]} 35. Kf3 {[%emt 0:00:15]} Kg6 {[%emt 0:00:13]} 36. Rh1 {[%emt 0:01:04]} h5 {[%emt 0:00:16][%cal Bh6h5,Bh5h4,Bh4h3][%mdl 32]} 37. Rg1+ {[%emt 0:00:44]} Kf6 {[%emt 0:06:28]} 38. Rh1 {[%emt 0:01:21]} Rh8 {[%emt 0:01:38]} 39. Re1 {[%emt 0:02:11]} h4 {[%emt 0:06:05]} 40. Re6+ {[%emt 0:00:19]} Kf7 {[%emt 0:00:08]} 41. Kg2 {[%emt 0:00:33]} ({Reject} 41. Kg4 h3 $1 42. Bg1 (42. Kxf5 $2 h2 $19) 42... Ng7 43. Rxd6 (43. Re2 Ne8 $17) 43... h2 44. Bxh2 Rxh2 45. Rd7+ Kf6 46. Rxa7 Rg2+ 47. Kf3 Rc2 $15) 41... h3+ {[%emt 0:01:52]} 42. Kh2 {[%emt 0:00:08]} Rh5 {[%emt 0:00:38]} 43. Re1 {[%emt 0:01:54]} (43. Be1 $11 {keeps the balance.}) 43... Nh6 $1 $17 {[%emt 0:02:43] Strongly threatening ...Ng4+.} 44. Rg1 {[%emt 0:00:32] Inhibits Ng4+.} (44. Kg3 $17) 44... Kf6 $2 {[%emt 0:00:33]} (44... Ng8 $1 $19 {White must now prevent ...Nf6.} 45. Rg5 Rh8) 45. Rg5 $1 $11 {[%emt 0:11:39]} Rxg5 {[%emt 0:00:30]} 46. Bh4 $2 (46. fxg5+ $11 {and White has nothing to worry.} Kxg5 47. Be3+ Kh5 48. Bxh6 Kxh6 49. Kxh3) 46... Nf7 $2 47. Kxh3 Nh6 $2 {[%mdl 8192]} 48. Kh2 $2 (48. fxg5+ $18 Kg7 49. gxh6+ Kg6 50. Be7) 48... Ng4+ $17 49. Kh3 $2 {[#]} (49. Kg1 $15) 49... Kf5 50. Bxg5 (50. fxg5 $17 Ne5 51. Bg3 Nxc4 52. Kh4) 50... Ne3 {Weighted Error Value: White=0.48/Black=0.30} 1/2-1/2

[Event "Leca Open 2022"]
[Site "Leca da Palmeira"]
[Date "2022.08.03"]
[Round "7.13"]
[White "Jesus, Joao Pedro Mendes D"]
[Black "Buscara, Sevan"]
[Result "0-1"]
[ECO "B56"]
[WhiteElo "1863"]
[BlackElo "2404"]
[Annotator "TA"]
[PlyCount "76"]
[EventDate "2022.08.02"]
[EventType "swiss"]
[EventCountry "POR"]
[SourceTitle "playchess.com"]
[Source "ChessBase"]
[SourceQuality "1"]
[TimeControl "5400+30"]

{[%evp 16,76,66,53,73,63,71,54,60,41,20,20,16,33,34,19,54,56,53,0,51,21,55,0,0,-13,-19,-120,-89,-143,-129,-127,-128,-123,-96,-119,-66,-133,-121,-193,-202,-317,-315,-319,-311,-310,-290,-459,-423,-464,-456,-524,-501,-508,-489,-435,-429,-645,-631,-680,-679,-29984,-29985]} 1. e4 {[%emt 0:00:27]} c5 {[%emt 0:01:00]} 2. Nf3 {[%emt 0:00:09]} d6 {[%emt 0:00:48]} 3. d4 {[%emt 0:00:29]} cxd4 {[%emt 0:00:05]} 4. Nxd4 {[%emt 0:00:03]} Nf6 {[%emt 0:00:16]} 5. Nc3 {[%emt 0:00:14]} Nc6 {[%emt 0:00:28]} 6. Be3 {[%emt 0:01:04]} e6 7. f3 {[%emt 0:01:06]} a6 {[%emt 0:01:19]} 8. Qd2 {[%emt 0:00:23]} Qc7 {[%emt 0:00:30]} 9. O-O-O {[%emt 0:04:05]} Be7 {[%emt 0:00:12] B80: Sicilian Scheveningen: 6 g3 and 6 Be3, including English Attack.} 10. Kb1 {[%emt 0:01:46]} Nd7 {[%emt 0:01:36]} 11. g4 {[%emt 0:03:59]} b5 {[%emt 0:01:37] [#] White is slightly better.} 12. Ndxb5 $146 {[%emt 0:08:43]} ({Predecessor:} 12. a3 Nce5 13. Bg5 Nf6 14. f4 Nc4 15. Bxc4 bxc4 16. e5 dxe5 17. fxe5 Nd5 18. Nxd5 exd5 19. Bxe7 Qxe7 {1-0 (36) Ristic,L (2212)-Pobor,M (2175) Paracin 2020}) 12... axb5 {[%emt 0:00:30]} 13. Nxb5 {[%emt 0:00:05]} Qb8 {[%emt 0:05:23] [#] ...0-0 is the strong threat.} 14. Nxd6+ {[%emt 0:00:19]} Bxd6 {[%emt 0:00:32]} 15. Qxd6 {[%emt 0:00:07]} Nce5 {[%emt 0:01:02] The board is on fire.} 16. Be2 {[%emt 0:01:15]} h5 {[%emt 0:02:03]} 17. Qxb8 {[%emt 0:01:10]} ({White should try} 17. gxh5 $14 Rxh5 18. h4 Qxd6 19. Rxd6) 17... Rxb8 {[%emt 0:02:58]} (17... Nxb8 $11 18. gxh5 Ba6 19. Bxa6 Nxa6) 18. h3 {[%emt 0:00:39]} Nb6 {[%emt 0:02:21]} 19. Bf4 {[%emt 0:06:02]} ({White should play} 19. b3 $14) 19... f6 $11 {[%emt 0:00:18]} 20. Bb5+ {[%emt 0:16:07]} Bd7 {[%emt 0:01:20]} 21. Bxd7+ {[%emt 0:01:45]} (21. Bxe5 $11 fxe5 22. Bxd7+ Nxd7 23. b3) 21... Nbxd7 $17 {[%emt 0:00:10]} 22. b3 {[%emt 0:00:31]} (22. gxh5 $142 Rxh5 23. Rhg1) 22... Rb7 {[%emt 0:00:50]} 23. Bxe5 {[%emt 0:09:49]} Nxe5 {[%emt 0:00:24]} 24. f4 {[%emt 0:00:05]} Nf7 {[%emt 0:00:11]} ({Don't play} 24... hxg4 25. fxe5 gxh3 26. Rd3 $16 (26. exf6 g5 $16)) 25. Rhg1 {[%emt 0:00:50]} hxg4 {[%emt 0:01:30]} ({Better is} 25... g5 $17 26. fxg5 Nxg5) 26. hxg4 {[%emt 0:00:45]} (26. Rxg4 $15 Rxh3 27. Rxg7) 26... Rh2 {[%emt 0:01:01]} 27. Kc1 {[%emt 0:02:22]} (27. g5 $17) 27... e5 $19 {[%emt 0:00:37][%cal Be6e5,Be5f4,Bf4f3][%mdl 32]} 28. g5 {[%emt 0:00:58]} (28. fxe5 {was called for.} Nxe5 29. Rg3) 28... exf4 {[%emt 0:05:26]} 29. gxf6 {[%emt 0:00:05]} gxf6 {[%emt 0:00:17][%cal Bg7f6,Bf6f5][%mdl 32]} 30. Rgf1 {[%emt 0:00:31]} Rh4 {[%emt 0:00:35]} 31. Rd4 {[%emt 0:01:38]} (31. Rh1 {was worth a try.} Rxh1 32. Rxh1) 31... Ne5 {[%emt 0:00:19]} 32. a4 {[%emt 0:00:30]} f3 {[%emt 0:00:19]} 33. a5 {[%emt 0:01:30]} f5 {[%emt 0:01:11]} 34. Rd5 {[%emt 0:01:13]} Rxe4 {[%emt 0:00:24]} 35. a6 {[%emt 0:00:44]} Ra7 {[%emt 0:00:09]} 36. Ra5 {[%emt 0:01:09]} (36. Rd6 $142) 36... Kd7 {[%emt 0:01:38]} 37. Kd2 {[%emt 0:02:44]} Kc6 {[%emt 0:00:40]} 38. Re1 {[%emt 0:00:29]} Rd7+ {[%emt 0:00:31] Weighted Error Value: White=0.71/Black=0.10 (very precise)} 0-1

[Event "Leca Open 2022"]
[Site "Leca da Palmeira"]
[Date "2022.08.03"]
[Round "7.14"]
[White "Touzane, Olivier"]
[Black "Akshit Kumar J"]
[Result "1-0"]
[ECO "A12"]
[WhiteElo "2266"]
[BlackElo "2103"]
[Annotator "TA"]
[PlyCount "93"]
[EventDate "2022.08.02"]
[EventType "swiss"]
[EventCountry "POR"]
[SourceTitle "playchess.com"]
[Source "ChessBase"]
[SourceQuality "1"]
[TimeControl "5400+30"]

{[%evp 15,93,10,12,24,26,10,23,15,50,52,39,33,30,33,29,16,24,19,14,0,63,60,51,52,71,71,63,27,41,34,113,24,22,22,32,-71,-88,-114,27,0,0,0,54,-39,0,-122,-129,-104,-100,-106,12,0,0,0,0,-115,-108,-189,-21,-163,-57,-62,-58,-95,0,0,0,0,0,0,0,0,0,0,63,82,12844,7214,29974,29961]} 1. Nf3 {[%emt 0:00:18]} d5 {[%emt 0:09:35]} 2. g3 {[%emt 0:00:56]} Nf6 {[%emt 0:00:47]} 3. c4 {[%emt 0:01:41]} c6 {[%emt 0:00:47]} 4. b3 {[%emt 0:00:16]} Bf5 {[%emt 0:01:01]} 5. Bb2 {[%emt 0:00:49]} e6 {[%emt 0:00:17]} 6. Bg2 {[%emt 0:00:20]} Nbd7 {[%emt 0:00:23]} 7. d3 {[%emt 0:01:00]} Bd6 {[%emt 0:02:15]} 8. O-O {[%emt 0:00:09]} Qe7 {[%emt 0:01:55]} 9. Nbd2 {[%emt 0:03:10] A12: English Opening: 1...c6 with b3 by White.} Ba3 {[%emt 0:06:48]} 10. Qc1 {[%emt 0:00:28]} Bxb2 {[%emt 0:01:13]} 11. Qxb2 {[%emt 0:00:07] [#] White has an edge.} e5 $146 {[%emt 0:05:37]} ({Predecessor:} 11... O-O 12. Rac1 h6 13. Rfe1 Bh7 14. cxd5 exd5 15. b4 Rfe8 16. d4 Ne4 17. b5 c5 18. dxc5 Ndxc5 19. Nb3 Rac8 20. Nxc5 Rxc5 {1-0 (47) Bosboom,M (2390)-Berkvens,J (2458) Netherlands 2007}) 12. cxd5 {[%emt 0:00:52]} cxd5 {[%emt 0:00:20]} 13. Rac1 {[%emt 0:00:08][%cal Oe2e4]} O-O {[%emt 0:04:50]} 14. Rc7 {[%emt 0:00:08]} Rab8 {[%emt 0:02:45]} 15. Rfc1 {[%emt 0:05:53]} Ne8 {[%emt 0:05:45]} 16. R7c2 {[%emt 0:01:10]} f6 {[%emt 0:04:13]} 17. Qc3 {[%emt 0:05:38]} Qa3 {[%emt 0:04:09]} (17... Be6 $11) 18. e4 $14 {[%emt 0:07:31]} dxe4 {[%emt 0:01:38]} 19. Nxe4 {[%emt 0:00:41]} Bxe4 {[%emt 0:07:14]} 20. dxe4 {[%emt 0:03:39]} Nd6 {[%emt 0:00:44]} 21. Qd3 {[%emt 0:01:35]} Rfd8 {[%emt 0:04:59]} 22. Nh4 {[%emt 0:00:47]} Qb4 {[%emt 0:04:12]} (22... Nf8 $14) 23. Rc7 {[%emt 0:07:08]} (23. Nf5 $16 Nxf5 24. Qd5+ (24. exf5 Nb6 $14) 24... Kf8 25. exf5) 23... Nb6 $11 {[%emt 0:08:07]} 24. Qe2 {[%emt 0:01:28]} Nb5 {[%emt 0:02:46]} 25. a3 {[%emt 0:09:02]} (25. R7c5 $14 {stays ahead.} Rbc8 26. Rxc8 Rxc8 27. Rxc8+ Nxc8 28. Qg4) 25... Qxb3 $17 {[%emt 0:01:47]} 26. R7c5 {[%emt 0:01:56] [#]} a6 {[%emt 0:04:08]} (26... Nxa3 $2 27. R5c3 Qe6 28. Rxa3 $18) (26... Rbc8 $1 $17 {[%cal Rc8c5] White must now prevent ...Rxc5.} 27. Rxc8 Nxc8) 27. Qg4 {[%emt 0:01:35][%mdl 1024] White has compensation.} Qf7 {[%emt 0:04:33]} 28. Bf1 {[%emt 0:00:41]} Nd6 {[%emt 0:09:02]} (28... Nxa3 $11 29. Nf5 Kh8) 29. Bh3 {[%emt 0:00:41]} ({White should try} 29. Rc7 $14 Qf8 30. Nf5 Nxf5 31. Qxf5) 29... Rbc8 {[%emt 0:00:57]} 30. Qe2 {[%emt 0:00:58]} (30. Rxc8 $11 Nbxc8 31. Qd1) 30... Rxc5 {[%emt 0:00:21]} 31. Rxc5 {[%emt 0:00:05]} Nb5 $36 {[%emt 0:00:43][%mdl 2048] Black is in control.} 32. Bf1 {[%emt 0:02:54]} Nd7 {[%emt 0:01:01]} (32... Nxa3 33. Qb2 Nbc4 34. Qa2 $15) (32... g6 $17 33. Qe3 Nd6) 33. Qd2 {[%emt 0:01:53] [#] Hoping for Bc4.} Qe7 {[%emt 0:01:33]} (33... Nxc5 34. Qxd8+ Qf8 35. Bc4+) (33... Nxa3 34. Rc7 g6 35. Bh3 $16) 34. Rd5 {[%emt 0:01:53] Nf5 is the strong threat.} Nd4 {[%emt 0:00:28]} (34... Nxa3 $2 35. Nf5 Qf8 36. Rxd7 Rxd7 37. Qxd7 $18) 35. Qd1 {[%emt 0:02:42]} (35. Qc3 $11 {keeps the balance.}) 35... g6 {[%emt 0:00:25]} ({Much less strong is} 35... Qxa3 36. Nf5 Kf8 37. Bh3 (37. Nxd4 exd4 38. Rxd4 Qe7 $16) 37... Nf3+ 38. Kh1 $18 (38. Kg2 Ng5 $16)) 36. Qg4 {[%emt 0:02:04]} (36. Nf3 $17 Nxf3+ 37. Qxf3) 36... Nf8 $2 {[%emt 0:00:37] Pair of Knights!} (36... Kf8 $19 37. a4 Nb6 38. Rxd8+ Qxd8) 37. Bc4 {[%emt 0:02:11]} (37. Nf5 $1 $11 {and White has nothing to worry.} Nxf5 38. Rxd8 Qxd8 39. exf5) 37... Rxd5 {[%emt 0:00:31]} (37... Kh8 $19 {Threatens to win with ...Rb8.} 38. Rxd8 Qxd8) 38. Bxd5+ $15 {[%emt 0:00:18]} Kg7 {[%emt 0:00:27] Strongly threatening ...b5.} 39. Qc8 {[%emt 0:00:06]} Qxa3 {[%emt 0:00:33]} ({Better is} 39... Qd7 $17 40. Qxb7 Qxb7 41. Bxb7 Nd7) 40. Qxb7+ $11 {[%emt 0:00:13]} Kh6 {[%emt 0:00:16]} 41. Qf7 {[%emt 0:00:41]} Qd6 {[%emt 0:00:18]} 42. Ng2 {[%emt 0:01:37]} Nf3+ $1 {[%emt 0:00:22]} 43. Kh1 $1 {[%emt 0:00:11] aiming for Ne3.} Ng5 $1 {[%emt 0:01:03]} 44. Qg8 {[%emt 0:00:17]} f5 {[%emt 0:00:32]} ({Black should play} 44... Nxe4 $1 $11 45. Ne3 Nxf2+ 46. Kg2 Nd3) 45. exf5 $14 {[%emt 0:01:21] White is more active.} gxf5 $2 {[%emt 0:00:07][%mdl 8192]} (45... Nd7 $16 46. h4 Nh3) 46. Ne3 $18 {[%emt 0:00:09]} Qf6 {[%emt 0:00:43]} 47. g4 {[%emt 0:02:32] Weighted Error Value: White=0.38/Black=0.46} 1-0

[Event "Leca Open 2022"]
[Site "Leca da Palmeira"]
[Date "2022.08.03"]
[Round "7.15"]
[White "Mateus, Andre"]
[Black "Rego, Pedro Filipe"]
[Result "0-1"]
[ECO "B31"]
[WhiteElo "1781"]
[BlackElo "2251"]
[Annotator "TA"]
[PlyCount "96"]
[EventDate "2022.08.02"]
[EventType "swiss"]
[EventCountry "POR"]
[SourceTitle "playchess.com"]
[Source "ChessBase"]
[SourceQuality "1"]
[TimeControl "5400+30"]

{[%evp 18,96,-5,-6,0,0,0,0,0,0,0,0,0,0,-11,-13,-26,-39,-23,-48,-31,-125,-14,-25,-25,-29,-16,-17,-17,-68,-71,-67,-70,-122,-122,-129,-129,-129,-123,-125,-121,-121,-122,-324,-323,-325,-329,-313,-313,-268,-329,-333,-333,-320,-314,-406,-362,-391,-430,-577,-539,-570,-577,-544,-521,-612,-576,-550,-517,-649,-504,-1331,-1304,-1233,-1145,-1424,-1267,-12844,-12841,-5712,-2176]} 1. e4 {[%emt 0:00:03]} c5 {[%emt 0:01:44]} 2. Nf3 {[%emt 0:00:03]} Nc6 {[%emt 0:00:02]} 3. Bb5 {[%emt 0:00:08]} g6 {[%emt 0:00:05]} 4. O-O {[%emt 0:00:08]} Bg7 {[%emt 0:00:02]} 5. c3 {[%emt 0:00:08]} Nf6 {[%emt 0:00:05]} 6. Re1 {[%emt 0:00:04]} O-O {[%emt 0:00:04]} 7. d4 {[%emt 0:00:04]} d5 {[%emt 0:00:08]} 8. e5 {[%emt 0:05:48]} Ne4 {[%emt 0:00:05]} 9. Nbd2 {[%emt 0:03:35]} cxd4 {[%emt 0:00:06]} 10. cxd4 {[%emt 0:03:52]} Qb6 {[%emt 0:00:09][%csl LRb5,LRd4] is the new trend. B31: Sicilian: 2...Nc6 3 Bb5 g6.} 11. Bxc6 {[%emt 0:01:31]} Qxc6 {[%emt 0:00:15]} 12. Nxe4 {[%emt 0:04:33]} dxe4 {[%emt 0:00:04] The position is equal.} 13. d5 {[%emt 0:01:07]} Qc4 {[%emt 0:00:05]} 14. Ng5 {[%emt 0:12:20]} Bxe5 {[%emt 0:03:12] And now ...f5 would win.} 15. Rxe4 {[%emt 0:02:07]} Qc7 {[%emt 0:00:10]} 16. Nf3 {[%emt 0:02:32]} Bf6 {[%emt 0:02:31]} 17. Bf4 {[%emt 0:05:15]} Qb6 {[%emt 0:00:34] [#]} 18. Be5 $146 {[%emt 0:01:30]} ({Predecessor:} 18. Re2 Bg4 19. Rc2 Bf5 20. Rc7 Bxb2 21. Rxe7 Qb4 22. Bg5 f6 23. Qe1 Qxe1+ 24. Raxe1 fxg5 25. Rxb7 {0-1 (31) Nadzamova,V (1779)-Ihnat,M (1940) Slovakia 2019}) 18... Bf5 {[%emt 0:00:59]} 19. Bxf6 {[%emt 0:09:56]} Qxf6 {[%emt 0:05:33]} (19... Bxe4 $17 20. Bxe7 {[#]} Qxb2 $1 21. Bxf8 Rxf8) 20. Re5 {[%emt 0:01:25]} Bg4 {[%emt 0:08:41] [#] Hoping for ...Bxf3.} 21. Qe2 {[%emt 0:02:04]} Rfd8 {[%emt 0:02:59]} 22. Re1 {[%emt 0:04:57]} Rac8 {[%emt 0:08:50]} 23. Rxe7 ({White should try} 23. h4 $11) 23... Bxf3 $15 {[%emt 0:00:11]} 24. gxf3 {[%emt 0:14:24]} Rxd5 {[%emt 0:00:22][%cal Oc8c1]} 25. Re5 {[%emt 0:01:46]} (25. Rxb7 $15 Rg5+ 26. Kh1) 25... Rxe5 $17 {[%emt 0:02:26] Black is more active.} 26. Qxe5 {[%emt 0:00:02]} Qxf3 {[%emt 0:00:12]} 27. Qe4 {[%emt 0:00:53]} Qxe4 {[%emt 0:00:38]} 28. Rxe4 {[%emt 0:00:01][%mdl 4096] Endgame KR-KR} Rc2 {[%emt 0:02:31]} 29. Rb4 {[%emt 0:00:11]} b6 {[%emt 0:00:18]} 30. Ra4 $2 {[%emt 0:03:53] This costs White the game.} (30. a4 $17 {was necessary.}) 30... a5 $19 {[%emt 0:01:25]} ({Inferior is} 30... Rxb2 31. Rxa7 Kg7 32. Rb7 $17) 31. b3 {[%emt 0:01:03]} Kf8 {[%emt 0:01:20]} 32. Kg2 {[%emt 0:00:07]} Ke7 {[%emt 0:00:06]} 33. Re4+ {[%emt 0:01:01]} Kd6 {[%emt 0:00:17]} 34. Ra4 {[%emt 0:04:36]} Kd5 {[%emt 0:01:21]} 35. Kf3 {[%emt 0:00:46]} Rc3+ {[%emt 0:00:56]} 36. Kg2 {[%emt 0:00:40]} f5 {[%emt 0:00:19]} 37. Kf1 {[%emt 0:03:25]} h5 {[%emt 0:00:45]} 38. h4 {[%emt 0:01:25] Black is clearly winning.} Rd3 {[%emt 0:00:38]} 39. Rc4 {[%emt 0:01:59]} Rd4 {[%emt 0:00:04]} 40. Rc8 {[%emt 0:00:18]} Rxh4 {[%emt 0:00:07]} 41. Rd8+ {[%emt 0:02:11]} Ke5 {[%emt 0:01:57]} 42. Rb8 {[%emt 0:00:08]} Rb4 {[%emt 0:00:06] Threatens to win with ...g5.} 43. Kg2 {[%emt 0:00:19]} Kf4 {[%emt 0:01:10]} 44. Rg8 {[%emt 0:00:59]} (44. Rh8 $142 a4 45. bxa4) 44... g5 {[%emt 0:00:11]} 45. Rc8 {[%emt 0:00:48]} h4 {[%emt 0:00:30] Strongly threatening ...g4.} 46. Rc3 {[%emt 0:00:11]} g4 {[%emt 0:00:09]} 47. f3 {[%emt 0:00:09]} Rd4 {[%emt 0:00:46] ( -> ...h3+)} 48. fxg4 {[%emt 0:00:19]} fxg4 {[%emt 0:00:35] Weighted Error Value: White=0.49/Black=0.10 (very precise)} 0-1